fUSD/lending_fUSD_20250511
["ID","MTS","AMOUNT","RATE_DAILY","PERIOD"]
[360699752,1746937847093,-400.0,0.00019575,2]
[360699753,1746937847102,-400.0,0.00019575,2]
[360699754,1746937847111,-500.0,0.00019575,2]
[360699755,1746937847121,-400.0,0.00019575,2]
[360699756,1746937847130,-400.0,0.00019575,2]
[360699757,1746937847140,-400.0,0.00019575,2]
[360699758,1746937847154,-192.01,0.00019575,2]
[360699759,1746937847163,-400.0,0.00019575,2]
[360699760,1746937847172,-400.0,0.00019575,2]
[360699761,1746937847181,-212.14,0.00019575,2]
[360699762,1746937847191,-400.0,0.00019575,2]
[360699763,1746937847200,-400.0,0.00019575,2]
[360699764,1746937847209,-400.0,0.00019575,2]
[360699765,1746937847218,-400.0,0.00019575,2]
[360699766,1746937847228,-400.0,0.00019575,2]
[360699767,1746937847238,-400.0,0.00019575,2]
[360699768,1746937847247,-400.0,0.00019575,2]
[360699769,1746937847256,-400.0,0.00019575,2]
[360699770,1746937847265,-400.0,0.00019575,2]
[360699771,1746937847274,-244.51289733,0.00019575,2]
[360699772,1746937847283,-400.0,0.00019575,2]
[360699773,1746937847292,-400.0,0.00019575,2]
[360699774,1746937847300,-400.0,0.00019575,2]
[360699775,1746937847309,-400.0,0.00019575,2]
[360699776,1746937847318,-400.0,0.00019575,2]
[360699777,1746937847327,-189.41,0.00019575,2]
[360699778,1746937847336,-400.0,0.00019575,2]
[360699779,1746937847345,-400.0,0.00019575,2]
[360699780,1746937847354,-400.0,0.00019575,2]
[360699781,1746937847366,-400.0,0.00019575,2]
[360699782,1746937847375,-626.62,0.00019575,2]
[360699783,1746937847384,-400.0,0.00019575,2]
[360699784,1746937847393,-400.0,0.00019575,2]
[360699785,1746937847403,-400.0,0.00019575,2]
[360699786,1746937847412,-400.0,0.00019575,2]
[360699787,1746937847421,-400.0,0.00019575,2]
[360699788,1746937847430,-504.51,0.00019575,2]
[360699789,1746937847439,-1234.06,0.00019575,2]
[360699790,1746937847448,-398.52018382,0.00019575,2]
[360699791,1746937847457,-400.0,0.00019575,2]
[360699792,1746937847466,-8190.42,0.00019575,2]
[360699793,1746937847475,-549.75,0.00019575,2]
[360699794,1746937847484,-400.0,0.00019575,2]
[360699795,1746937847492,-173.4,0.00019575,2]
[360699796,1746937847501,-400.0,0.00019575,2]
[360699797,1746937847511,-400.0,0.00019575,2]
[360699798,1746937847520,-207.16,0.00019575,2]
[360699799,1746937847529,-480.24725117,0.00019575,2]
[360699800,1746937847538,-400.0,0.00019575,2]
[360699801,1746937847547,-400.0,0.00019575,2]
[360699802,1746937847555,-400.0,0.00019575,2]
[360699803,1746937847564,-400.0,0.00019575,2]
[360699804,1746937847573,-400.0,0.00019575,2]
[360699805,1746937847582,-186.10306038,0.00019575,2]
[360699806,1746937847591,-400.0,0.00019575,2]
[360699807,1746937847602,-400.0,0.00019575,2]
[360699808,1746937847613,-400.0,0.00019575,2]
[360699809,1746937847624,-415.74,0.00019575,2]
[360699810,1746937847634,-400.0,0.00019575,2]
[360699811,1746937847644,-400.0,0.00019575,2]
[360699812,1746937847655,-400.0,0.00019575,2]
[360699813,1746937847665,-400.0,0.00019575,2]
[360699814,1746937847674,-400.0,0.00019575,2]
[360699815,1746937847684,-400.0,0.00019575,2]
[360699816,1746937847695,-400.0,0.00019575,2]
[360699817,1746937847705,-400.0,0.00019575,2]
[360699818,1746937847716,-400.0,0.00019575,2]
[360699819,1746937847727,-400.0,0.00019575,2]
[360699820,1746937847737,-400.0,0.00019575,2]
[360699821,1746937847747,-400.0,0.00019575,2]
[360699822,1746937847758,-400.0,0.00019575,2]
[360699823,1746937847767,-400.0,0.00019575,2]
[360699824,1746937847776,-328.09,0.00019575,2]
[360699825,1746937847786,-400.0,0.00019575,2]
[360699826,1746937847796,-400.0,0.00019575,2]
[360699827,1746937847808,-400.0,0.00019575,2]
[360699828,1746937847818,-400.0,0.00019575,2]
[360699829,1746937847827,-400.0,0.00019575,2]
[360699830,1746937847836,-400.0,0.00019575,2]
[360699831,1746937847846,-432.6,0.00019575,2]
[360699832,1746937847855,-400.0,0.00019575,2]
[360699833,1746937847864,-568.51,0.00019575,2]
[360699834,1746937847874,-400.0,0.00019575,2]
[360699835,1746937847883,-400.0,0.00019575,2]
[360699836,1746937847893,-400.0,0.00019575,2]
[360699837,1746937847902,-400.0,0.00019575,2]
[360699838,1746937847912,-537.2846137,0.00019575,2]
[360699839,1746937847921,-400.0,0.00019575,2]
[360699840,1746937847931,-400.0,0.00019575,2]
[360699841,1746937847940,-400.0,0.00019575,2]
[360699842,1746937847950,-522.34,0.00019575,2]
[360699843,1746937847959,-400.0,0.00019575,2]
[360699844,1746937847969,-400.0,0.00019575,2]
[360699845,1746937847978,-8278.64172437,0.00019575,2]
[360699846,1746937847998,-470.33256408,0.00019575,2]
[360699847,1746937848023,-3093.21904339,0.00019575,2]
[360699848,1746937848034,-4171.59666816,0.00019575,2]
[360699849,1746937848044,-92.9434791,0.00019575,2]
[360699850,1746937848055,-307.0565209,0.00019575,2]
[360699851,1746937848065,-400.0,0.00019575,2]
[360699852,1746937848074,-400.0,0.00019575,2]
[360699853,1746937848083,-400.0,0.00019575,2]
[360699854,1746937848093,-400.0,0.00019575,2]
[360699855,1746937848103,-400.0,0.00019575,2]
[360699856,1746937848114,-400.0,0.00019575,2]
[360699857,1746937848124,-385.28,0.00019575,2]
[360699858,1746937848133,-400.0,0.00019575,2]
[360699859,1746937848144,-400.0,0.00019575,2]
[360699860,1746937848155,-400.0,0.00019575,2]
[360699861,1746937848164,-218.87,0.00019575,2]
[360699862,1746937848175,-400.0,0.00019575,2]
[360699863,1746937848186,-400.0,0.00019575,2]
[360699864,1746937848196,-400.0,0.00019575,2]
[360699865,1746937848205,-400.0,0.00019575,2]
[360699866,1746937848215,-348.03283257,0.00019575,2]
[360699867,1746937848226,-300.61503683,0.00019575,2]
[360699868,1746937848236,-400.0,0.00019575,2]
[360699869,1746937848246,-400.0,0.00019575,2]
[360699870,1746937848255,-400.0,0.00019575,2]
[360699871,1746937848264,-302.08123509,0.00019575,2]
[360699872,1746937848772,-275.0,0.00019475,2]
[360699873,1746937848785,-125.0,0.00019475,2]
[360699874,1746937848795,-400.0,0.00019574,2]
[360699875,1746937848804,-97.91876491,0.00019575,2]
[360699876,1746937848814,-400.0,0.00019575,2]
[360699877,1746937848824,-400.0,0.00019575,2]
[360699878,1746937848834,-400.0,0.00019575,2]
[360699879,1746937848844,-128.19248967,0.00019575,2]
[360699880,1746937848856,-271.80751033,0.00019575,2]
[360699881,1746937848865,-400.0,0.00019575,2]
[360699882,1746937848875,-400.0,0.00019575,2]
[360699883,1746937848884,-400.0,0.00019575,2]
[360699884,1746937848895,-208.11211623,0.00019575,2]
[360699885,1746937848917,-169.17782861,0.00019452,2]
[360699886,1746937848927,-191.88788377,0.00019575,2]
[360699887,1746937848937,-400.0,0.00019575,2]
[360699888,1746937848947,-1096.17,0.00019575,2]
[360699889,1746937848957,-400.0,0.00019575,2]
[360699890,1746937848968,-251.9335197,0.00019575,2]
[360699891,1746937848990,-148.0664803,0.00019575,2]
[360699892,1746937848999,-400.0,0.00019575,2]
[360699893,1746937849010,-436.97610869,0.00019575,2]
[360699894,1746937849077,-400.0,0.00019475,2]
[360699895,1746937849088,-63.12999998,0.00019575,2]
[360699896,1746937849100,-440.09389133,0.00019575,2]
[360699897,1746937849109,-400.0,0.00019575,2]
[360699898,1746937849119,-400.0,0.00019575,2]
[360699899,1746937849129,-416.81085491,0.00019575,2]
[360699900,1746937849155,-400.0,0.00019476,2]
[360699901,1746937849165,-103.59914509,0.00019575,2]
[360699902,1746937849175,-400.0,0.00019575,2]
[360699903,1746937849185,-582.45,0.00019575,2]
[360699904,1746937849195,-400.0,0.00019575,2]
[360699905,1746937849204,-313.6136919,0.00019576,2]
[360699906,1746937849214,-400.0,0.00019576,2]
[360699907,1746937849226,-91.53440959,0.00019576,2]
[360699911,1746938566812,168.39,0.00013699,2]
[360699912,1746938754913,386.32422921,0.0003013,120]
[360699913,1746938762558,790.27,0.00016564,2]
[360699915,1746938836124,-155.0,0.00018438,2]
[360699916,1746938836148,-950.18759394,0.0001847,2]
[360699919,1746938935262,173.79352165,0.00030136,120]
[360699935,1746939031383,-175.5,0.00018375,2]
[360699936,1746939031394,-250.0,0.00018422,2]
[360699937,1746939031403,-49.81240606,0.0001847,2]
[360699938,1746939031413,-436.99,0.00018471,2]
[360699939,1746939031422,-790.27,0.00018828,2]
[360699940,1746939031431,-200.0,0.000189,6]
[360699941,1746939031440,-164.9,0.00018999,2]
[360699942,1746939031449,-500.0,0.00019,6]
[360699943,1746939031459,-788.171842,0.00019006,2]
[360699944,1746939031468,-700.0,0.000191,6]
[360699945,1746939031477,-457.17,0.000191,2]
[360699946,1746939031486,-234.67332894,0.000191,2]
[360699947,1746939031501,-222.05667106,0.000191,2]
[360699948,1746939031512,-151.0,0.00019178,2]
[360699949,1746939031525,-418.08795103,0.00019178,2]
[360699950,1746939031536,-122.14204897,0.00019178,2]
[360699951,1746939031545,-457.69299626,0.000192,7]
[360699952,1746939031584,-397.19000798,0.000192,7]
[360699953,1746939031595,-145.11699576,0.000192,7]
[360699954,1746939031605,-300.0,0.00019298,2]
[360699955,1746939031614,-1200.0,0.00019299,2]
[360699956,1746939031623,-300.0,0.00019299,2]
[360699957,1746939031633,-1300.0,0.000193,7]
[360699958,1746939031642,-191.56301624,0.000193,2]
[360699959,1746939031653,-658.18734597,0.000193,2]
[360699960,1746939031668,-150.24963779,0.000193,2]
[360699961,1746939031677,-1390.93973563,0.000193,2]
[360699962,1746939031705,-644.94354743,0.000193,2]
[360699963,1746939031716,-2306.43100892,0.000193,2]
[360699964,1746939031727,-693.68570802,0.000193,2]
[360699966,1746939031736,-788.171842,0.00019315,2]
[360699968,1746939031746,-207.4,0.00019365,2]
[360699970,1746939031755,-5.96525932,0.00019375,2]
[360699972,1746939031766,-1025.1388838,0.00019375,2]
[360700342,1746939037449,-8739.01312311,0.00019375,2]
[360700343,1746939037460,-11862.2206,0.00019375,2]
[360700344,1746939037470,-5402.03,0.00019375,2]
[360700345,1746939037480,-4927.49,0.00019375,2]
[360700346,1746939037490,-500.0,0.00019376,2]
[360700347,1746939037499,-19854.10449108,0.00019377,2]
[360700348,1746939037511,-37578.23730892,0.00019377,2]
[360700349,1746939037523,-457.17,0.000194,2]
[360700350,1746939037543,-1606.62,0.000194,2]
[360700351,1746939037553,-200.0,0.000194,7]
[360700352,1746939037563,-500.0,0.00019432,2]
[360700353,1746939037573,-500.0,0.00019432,2]
[360700354,1746939037583,-453.51580167,0.00019432,2]
[360700355,1746939037592,-9770.11726622,0.00019433,2]
[360700356,1746939037601,-151.29,0.00019435,2]
[360700357,1746939037610,-1156.1,0.00019435,2]
[360700358,1746939037620,-162.5,0.00019435,2]
[360700359,1746939037630,-307.32,0.00019435,2]
[360700360,1746939037639,-170.3466249,0.00019462,2]
[360700361,1746939037648,-151.0,0.00019463,2]
[360700362,1746939037657,-151.0,0.00019463,2]
[360700363,1746939037667,-668.65185757,0.00019463,2]
[360700365,1746939037676,-166.33,0.00019465,2]
[360700367,1746939037687,-296.83510067,0.00019473,2]
[360700369,1746939037697,-451.9129048,0.00019474,2]
[360700371,1746939037707,-400.0,0.00019474,2]
[360700373,1746939037716,-400.588147,0.00019474,2]
[360700375,1746939037725,-400.0,0.00019474,2]
[360700377,1746939037734,-400.0,0.00019474,2]
[360700378,1746939037743,-400.0,0.00019474,2]
[360700380,1746939037752,-179.42555976,0.00019474,2]
[360700382,1746939037761,-518.51408802,0.00019474,2]
[360700416,1746939037972,-519.87518962,0.00019474,2]
[360700417,1746939037982,-400.0,0.00019474,2]
[360700418,1746939037991,-400.0,0.00019474,2]
[360700419,1746939038000,-628.17,0.00019474,2]
[360700420,1746939038009,-400.0,0.00019474,2]
[360700421,1746939038018,-400.0,0.00019474,2]
[360700422,1746939038027,-955.48,0.00019474,2]
[360700423,1746939038036,-400.0,0.00019474,2]
[360700424,1746939038046,-614.79,0.00019474,2]
[360700425,1746939038055,-1058.63,0.00019474,2]
[360700426,1746939038065,-400.0,0.00019474,2]
[360700427,1746939038081,-400.0,0.00019474,2]
[360700428,1746939038090,-599.72,0.00019474,2]
[360700429,1746939038099,-400.0,0.00019474,2]
[360700430,1746939038109,-400.0,0.00019474,2]
[360700431,1746939038119,-400.0,0.00019474,2]
[360700432,1746939038128,-400.0,0.00019474,2]
[360700433,1746939038138,-400.0,0.00019474,2]
[360700434,1746939038147,-400.0,0.00019474,2]
[360700435,1746939038156,-400.0,0.00019474,2]
[360700436,1746939038166,-400.0,0.00019474,2]
[360700437,1746939038175,-406.36,0.00019474,2]
[360700438,1746939038185,-400.0,0.00019474,2]
[360700439,1746939038195,-400.0,0.00019474,2]
[360700440,1746939038204,-580.75,0.00019474,2]
[360700441,1746939038213,-507.46,0.00019474,2]
[360700442,1746939038223,-723.28,0.00019474,2]
[360700443,1746939038232,-800.41,0.00019474,2]
[360700444,1746939038242,-400.0,0.00019474,2]
[360700445,1746939038252,-1612.71,0.00019474,2]
[360700446,1746939038262,-400.0,0.00019474,2]
[360700447,1746939038271,-400.0,0.00019474,2]
[360700448,1746939038281,-400.0,0.00019474,2]
[360700449,1746939038290,-400.0,0.00019474,2]
[360700450,1746939038300,-400.0,0.00019474,2]
[360700451,1746939038309,-400.0,0.00019474,2]
[360700452,1746939038322,-400.0,0.00019474,2]
[360700453,1746939038333,-400.0,0.00019474,2]
[360700454,1746939038342,-400.0,0.00019474,2]
[360700455,1746939038351,-400.0,0.00019474,2]
[360700456,1746939038362,-400.0,0.00019474,2]
[360700457,1746939038371,-400.0,0.00019474,2]
[360700458,1746939038381,-400.0,0.00019474,2]
[360700459,1746939038390,-417.43,0.00019474,2]
[360700460,1746939038400,-400.0,0.00019474,2]
[360700461,1746939038410,-400.0,0.00019475,2]
[360700462,1746939038421,-400.0,0.00019475,2]
[360700463,1746939038431,-403.44356996,0.00019475,2]
[360700464,1746939038442,-400.0,0.00019475,2]
[360700465,1746939038451,-400.0,0.00019475,2]
[360700466,1746939038461,-400.0,0.00019475,2]
[360700467,1746939038470,-517.78444898,0.00019475,2]
[360700468,1746939038481,-400.0,0.00019475,2]
[360700469,1746939038491,-400.0,0.00019475,2]
[360700470,1746939038500,-400.0,0.00019475,2]
[360700471,1746939038510,-400.0,0.00019475,2]
[360700472,1746939038520,-400.0,0.00019475,2]
[360700473,1746939038532,-400.0,0.00019475,2]
[360700474,1746939038542,-400.0,0.00019475,2]
[360700475,1746939038551,-400.0,0.00019475,2]
[360700476,1746939038560,-400.0,0.00019475,2]
[360700477,1746939038572,-400.0,0.00019475,2]
[360700478,1746939038582,-152.51314024,0.00019475,2]
[360700479,1746939038591,-500.0,0.00019475,2]
[360700480,1746939038601,-400.0,0.00019475,2]
[360700481,1746939038611,-400.0,0.00019475,2]
[360700482,1746939038619,-414.50774805,0.00019475,2]
[360700483,1746939038631,-400.0,0.00019475,2]
[360700484,1746939038641,-400.0,0.00019475,2]
[360700485,1746939038651,-400.0,0.00019475,2]
[360700486,1746939038660,-400.0,0.00019475,2]
[360700487,1746939038669,-414.18167328,0.00019475,2]
[360700488,1746939038679,-400.0,0.00019475,2]
[360700489,1746939038689,-400.0,0.00019475,2]
[360700490,1746939038699,-374.44454075,0.00019475,2]
[360700491,1746939038708,-400.0,0.00019475,2]
[360700492,1746939038717,-400.0,0.00019475,2]
[360700493,1746939038727,-400.0,0.00019475,2]
[360700494,1746939038735,-400.0,0.00019475,2]
[360700495,1746939038744,-400.0,0.00019475,2]
[360700496,1746939038754,-400.0,0.00019475,2]
[360700497,1746939038764,-400.0,0.00019475,2]
[360700498,1746939038774,-400.0,0.00019475,2]
[360700499,1746939038784,-400.0,0.00019475,2]
[360700500,1746939038794,-400.0,0.00019475,2]
[360700501,1746939038815,-400.0,0.00019475,2]
[360700502,1746939038827,-400.0,0.00019475,2]
[360700503,1746939038837,-406.21904233,0.00019475,2]
[360700504,1746939038848,-400.0,0.00019475,2]
[360700505,1746939038858,-239.67421768,0.00019475,2]
[360700506,1746939038868,-400.0,0.00019475,2]
[360700507,1746939038878,-400.0,0.00019475,2]
[360700508,1746939038888,-445.02014588,0.00019475,2]
[360700509,1746939038898,-400.0,0.00019475,2]
[360700510,1746939038908,-400.0,0.00019475,2]
[360700511,1746939038918,-400.0,0.00019475,2]
[360700512,1746939038928,-400.0,0.00019475,2]
[360700513,1746939038938,-400.0,0.00019475,2]
[360700514,1746939038947,-400.0,0.00019475,2]
[360700515,1746939038957,-401.74834928,0.00019475,2]
[360700516,1746939038967,-400.0,0.00019475,2]
[360700517,1746939038976,-400.0,0.00019475,2]
[360700518,1746939038987,-400.0,0.00019475,2]
[360700519,1746939038998,-400.0,0.00019475,2]
[360700520,1746939039014,-400.0,0.00019475,2]
[360700521,1746939039024,-464.54179732,0.00019475,2]
[360700522,1746939039035,-400.0,0.00019475,2]
[360700523,1746939039045,-400.0,0.00019475,2]
[360700524,1746939039054,-400.0,0.00019475,2]
[360700525,1746939039064,-500.0,0.00019475,2]
[360700526,1746939039076,-212.58744251,0.00019475,2]
[360700527,1746939039338,-187.41255749,0.00019475,2]
[360700529,1746939039348,-400.0,0.00019475,2]
[360700530,1746939039358,-400.0,0.00019475,2]
[360700531,1746939039368,-400.0,0.00019475,2]
[360700532,1746939039377,-497.306792,0.00019475,2]
[360700533,1746939039387,-325.82624635,0.00019475,2]
[360700534,1746939039396,-400.0,0.00019475,2]
[360700535,1746939039406,-400.0,0.00019475,2]
[360700536,1746939039415,-400.0,0.00019475,2]
[360700537,1746939039424,-384.5330346,0.00019475,2]
[360700538,1746939039436,-15.4669654,0.00019475,2]
[360700539,1746939039447,-300.94722243,0.00019475,2]
[360700540,1746939039458,-99.05277757,0.00019475,2]
[360700541,1746939039468,-400.0,0.00019475,2]
[360700542,1746939039477,-400.0,0.00019475,2]
[360700543,1746939039487,-400.0,0.00019475,2]
[360700544,1746939039496,-400.0,0.00019475,2]
[360700545,1746939039505,-400.0,0.00019475,2]
[360700546,1746939039515,-400.0,0.00019475,2]
[360700547,1746939039526,-400.0,0.00019475,2]
[360700548,1746939039536,-400.0,0.00019475,2]
[360700549,1746939039547,-400.0,0.00019475,2]
[360700550,1746939039556,-400.0,0.00019475,2]
[360700551,1746939039566,-400.0,0.00019475,2]
[360700552,1746939039578,-413.49249992,0.00019475,2]
[360700553,1746939039587,-162.40352409,0.00019475,2]
[360700554,1746939039611,-237.59647591,0.00019475,2]
[360700555,1746939039620,-83.98935206,0.00019475,2]
[360700556,1746939039882,-316.01064794,0.00019475,2]
[360700557,1746939039894,-400.0,0.00019475,2]
[360700558,1746939039908,-400.0,0.00019475,2]
[360700559,1746939039921,-400.0,0.00019475,2]
[360700560,1746939039935,-400.0,0.00019475,2]
[360700561,1746939039947,-164.19656088,0.00019475,2]
[360700562,1746939039959,-520.08843303,0.00019475,2]
[360700563,1746939039971,-400.0,0.00019475,2]
[360700564,1746939039983,-400.0,0.00019475,2]
[360700565,1746939039995,-400.0,0.00019475,2]
[360700566,1746939040008,-400.0,0.00019475,2]
[360700567,1746939040020,-400.0,0.00019475,2]
[360700568,1746939040032,-400.0,0.00019475,2]
[360700570,1746939040045,-400.0,0.00019475,2]
[360700571,1746939040057,-400.0,0.00019475,2]
[360700572,1746939040068,-300.0,0.00019475,2]
[360700573,1746939040081,-400.0,0.00019475,2]
[360700574,1746939040093,-408.87413147,0.00019475,2]
[360700575,1746939040104,-481.28854176,0.00019475,2]
[360700576,1746939040117,-400.0,0.00019475,2]
[360700577,1746939040129,-400.0,0.00019475,2]
[360700578,1746939040140,-400.0,0.00019475,2]
[360700579,1746939040154,-445.84002324,0.00019475,2]
[360700580,1746939040165,-400.0,0.00019475,2]
[360700581,1746939040175,-400.0,0.00019475,2]
[360700582,1746939040185,-400.0,0.00019475,2]
[360700583,1746939040197,-400.0,0.00019475,2]
[360700584,1746939040208,-400.0,0.00019475,2]
[360700585,1746939040221,-301.0,0.00019475,2]
[360700586,1746939040235,-400.0,0.00019475,2]
[360700587,1746939040247,-400.0,0.00019475,2]
[360700588,1746939040257,-191.06,0.00019475,2]
[360700589,1746939040269,-400.0,0.00019475,2]
[360700590,1746939040288,-400.0,0.00019475,2]
[360700591,1746939040299,-400.0,0.00019475,2]
[360700592,1746939040313,-400.0,0.00019475,2]
[360700593,1746939040326,-400.0,0.00019475,2]
[360700594,1746939040340,-400.0,0.00019475,2]
[360700595,1746939040353,-400.0,0.00019475,2]
[360700596,1746939040364,-400.0,0.00019475,2]
[360700597,1746939040375,-400.0,0.00019475,2]
[360700598,1746939040388,-400.0,0.00019475,2]
[360700599,1746939040399,-400.0,0.00019475,2]
[360700600,1746939040409,-400.0,0.00019475,2]
[360700601,1746939040420,-400.0,0.00019475,2]
[360700602,1746939040431,-259.83259264,0.00019475,2]
[360700603,1746939040442,-400.0,0.00019475,2]
[360700604,1746939040453,-400.0,0.00019475,2]
[360700605,1746939040464,-400.0,0.00019475,2]
[360700606,1746939040475,-407.93244344,0.00019475,2]
[360700607,1746939040485,-400.0,0.00019475,2]
[360700608,1746939040496,-400.0,0.00019475,2]
[360700609,1746939040507,-400.0,0.00019475,2]
[360700610,1746939040518,-400.0,0.00019475,2]
[360700611,1746939040532,-400.0,0.00019475,2]
[360700612,1746939040543,-400.0,0.00019475,2]
[360700613,1746939040553,-400.0,0.00019475,2]
[360700614,1746939040565,-1198.88,0.00019475,2]
[360700615,1746939040576,-400.0,0.00019475,2]
[360700616,1746939040586,-400.0,0.00019475,2]
[360700617,1746939040598,-400.0,0.00019475,2]
[360700618,1746939040608,-400.0,0.00019475,2]
[360700619,1746939040619,-400.0,0.00019475,2]
[360700620,1746939040630,-400.0,0.00019475,2]
[360700621,1746939040641,-400.0,0.00019475,2]
[360700622,1746939040651,-400.0,0.00019475,2]
[360700623,1746939040662,-400.0,0.00019475,2]
[360700624,1746939040673,-400.0,0.00019475,2]
[360700625,1746939040683,-400.0,0.00019475,2]
[360700626,1746939040694,-580.09,0.00019475,2]
[360700627,1746939040705,-400.0,0.00019475,2]
[360700628,1746939040715,-400.0,0.00019475,2]
[360700629,1746939040726,-400.0,0.00019475,2]
[360700630,1746939040737,-518.6,0.00019475,2]
[360700631,1746939040747,-400.0,0.00019475,2]
[360700632,1746939040758,-400.0,0.00019475,2]
[360700633,1746939040768,-400.0,0.00019475,2]
[360700634,1746939040780,-400.0,0.00019475,2]
[360700635,1746939040791,-400.0,0.00019475,2]
[360700636,1746939040802,-400.0,0.00019475,2]
[360700637,1746939040813,-400.0,0.00019475,2]
[360700638,1746939040825,-400.0,0.00019475,2]
[360700639,1746939040835,-400.0,0.00019475,2]
[360700640,1746939040846,-400.0,0.00019475,2]
[360700641,1746939040857,-400.0,0.00019475,2]
[360700642,1746939040869,-400.0,0.00019475,2]
[360700643,1746939040879,-16376.86,0.00019475,2]
[360700644,1746939040891,-400.0,0.00019475,2]
[360700645,1746939040902,-400.0,0.00019475,2]
[360700646,1746939040913,-400.0,0.00019475,2]
[360700647,1746939040923,-463.943313,0.00019475,2]
[360700648,1746939040935,-400.0,0.00019475,2]
[360700649,1746939040946,-400.0,0.00019475,2]
[360700650,1746939040957,-400.0,0.00019475,2]
[360700651,1746939040968,-547.95,0.00019475,2]
[360700652,1746939040979,-400.0,0.00019475,2]
[360700653,1746939040990,-400.0,0.00019475,2]
[360700654,1746939041001,-400.0,0.00019475,2]
[360700655,1746939041012,-400.0,0.00019475,2]
[360700656,1746939041023,-400.0,0.00019475,2]
[360700657,1746939041034,-400.0,0.00019475,2]
[360700658,1746939041045,-400.0,0.00019475,2]
[360700659,1746939041056,-400.0,0.00019475,2]
[360700660,1746939041067,-400.0,0.00019475,2]
[360700661,1746939041083,-1033.8,0.00019475,2]
[360700662,1746939041094,-400.0,0.00019475,2]
[360700663,1746939041104,-400.0,0.00019475,2]
[360700664,1746939041115,-400.0,0.00019475,2]
[360700665,1746939041126,-400.0,0.00019475,2]
[360700666,1746939041137,-1009.04,0.00019475,2]
[360700667,1746939041148,-564.4,0.00019475,2]
[360700668,1746939041159,-400.0,0.00019475,2]
[360700669,1746939041171,-400.0,0.00019475,2]
[360700670,1746939041182,-629.67,0.00019475,2]
[360700671,1746939041193,-467.43,0.00019481,2]
[360700672,1746939041204,-400.0,0.0001949,2]
[360700673,1746939041215,-400.0,0.00019491,2]
[360700674,1746939041226,-400.0,0.00019491,2]
[360700675,1746939041237,-400.0,0.00019491,2]
[360700676,1746939041248,-400.0,0.00019491,2]
[360700677,1746939041259,-400.0,0.00019491,2]
[360700678,1746939041271,-400.0,0.00019491,2]
[360700679,1746939041282,-400.0,0.00019491,2]
[360700680,1746939041292,-404.25170052,0.00019491,2]
[360700681,1746939041304,-400.0,0.00019491,2]
[360700682,1746939041314,-400.0,0.00019491,2]
[360700683,1746939041329,-173.70229861,0.00019491,2]
[360700684,1746939041340,-205.69,0.00019491,2]
[360700685,1746939041351,-501.74768569,0.00019491,2]
[360700686,1746939041361,-400.0,0.00019491,2]
[360700687,1746939041372,-400.0,0.00019491,2]
[360700688,1746939041383,-400.0,0.00019491,2]
[360700689,1746939041394,-400.0,0.00019491,2]